bitfinex-derivatives/quotes_BNBF0:USTF0_20250710
["timestamp","ask_amount","ask_price","bid_price","bid_amount"]
[1752176100644,1.65673401,676.6,676.18,1.374]
[1752176100645,1.65673401,676.6,676.5,0.98596421]
[1752176100945,1.65673401,676.59,676.51,0.98766642]
[1752176101147,1.65673401,676.59,676.52,0.98766642]
[1752176101448,1.65673401,676.59,676.53,0.98766642]
[1752176101747,1.65673401,676.55,676.54,0.98766642]
[1752176102848,2.21315372,676.76,676.54,0.98766642]
[1752176103048,2.21315372,676.72,676.55,0.98766642]
[1752176103349,2.21315372,676.72,676.56,0.98766642]
[1752176103548,2.21315372,676.72,676.57,0.98766642]
[1752176103845,2.21315372,676.65,676.18,1.374]
[1752176104149,1.66045813,676.49,676.19,0.98805778]
[1752176104448,1.66045813,676.49,676.2,0.98805778]
[1752176104647,1.66045813,676.49,676.21,0.98805778]
[1752176104851,1.66045813,676.49,676.22,0.98805778]
[1752176105050,3.31973058,676.82,676.18,1.374]
[1752176105051,1.66045813,676.5,676.23,0.98805778]
[1752176105251,1.66045813,676.5,676.24,0.98805778]
[1752176105451,1.66045813,676.49,676.25,0.98805778]
[1752176105651,1.66045813,676.49,676.26,0.98805778]
[1752176105853,1.66045813,676.49,676.27,0.98805778]
[1752176106052,1.66045813,676.49,676.28,0.98805778]
[1752176106252,1.66045813,676.49,676.29,0.98805778]
[1752176106548,1.66045813,676.49,676.3,0.98805778]
[1752176106752,1.66045813,676.49,676.31,0.98805778]
[1752176106953,1.66045813,676.49,676.32,0.98805778]
[1752176107152,1.66045813,676.49,676.33,0.98805778]
[1752176107353,1.66045813,676.49,676.34,0.98805778]
[1752176107650,1.66045813,676.48,676.35,0.98805778]
[1752176107849,1.66045813,676.48,676.36,0.98805778]
[1752176108053,1.66045813,676.48,676.37,0.98805778]
[1752176108353,0.25711879,677.14,676.18,1.374]
[1752176108354,1.66045813,676.46,676.38,0.98805778]
[1752176108548,1.66045813,676.46,676.39,0.98805778]
[1752176108751,1.66045813,676.46,676.4,0.98805778]
[1752176108951,1.66045813,676.46,676.41,0.98805778]
[1752176109150,1.66045813,676.46,676.42,0.98805778]
[1752176109454,1.66045813,676.46,676.43,0.98805778]
[1752176109752,2.21315372,676.58,676.44,0.98805778]
[1752176109951,2.21315372,676.58,676.45,0.98805778]
[1752176110254,2.21315372,676.58,676.46,0.98805778]
[1752176110454,2.21315372,676.57,676.47,0.98805778]
[1752176110750,2.21315372,676.58,676.48,0.98813771]
[1752176110954,2.21315372,676.58,676.49,0.98813771]
[1752176111157,2.21315372,676.58,676.5,0.98813771]
[1752176111355,2.21315372,676.58,676.18,1.374]
[1752176111553,1.66019979,676.44,676.19,0.9880589]
[1752176111756,1.66019979,676.44,676.2,0.9880589]
[1752176112053,1.66019979,676.43,676.21,0.98816747]
[1752176112255,1.66019979,676.43,676.22,0.98816747]
[1752176112556,1.66019979,676.43,676.18,1.374]
[1752176112557,1.66019979,676.43,676.23,0.98816747]
[1752176112751,1.66019979,676.43,676.24,0.98816747]
[1752176112955,1.66019979,676.43,676.25,0.98816747]
[1752176113156,1.66019979,676.43,676.26,0.98816747]
[1752176113359,1.66019979,676.44,676.27,0.98816747]
[1752176113559,1.66019979,676.44,676.28,0.98816747]
[1752176113759,1.66019979,676.44,676.29,0.98816747]
[1752176114055,1.66019979,676.44,676.3,0.98816747]
[1752176114358,1.66019979,676.44,676.18,1.374]
[1752176114359,1.66019979,676.44,676.31,0.98816747]
[1752176114555,1.66019979,676.44,676.32,0.98816747]
[1752176114756,1.66019979,676.44,676.33,0.98816747]
[1752176115055,1.66019979,676.43,676.34,0.98816747]
[1752176115355,1.66019979,676.44,676.35,0.98816747]
[1752176115660,1.66019979,676.44,676.36,0.98816747]
[1752176115959,1.66019979,676.44,676.37,0.98816747]
[1752176116257,1.66019979,676.44,676.38,0.98816747]
[1752176116456,1.66019979,676.44,676.39,0.98816747]
[1752176116756,1.66019979,676.44,676.4,0.98816747]
[1752176116955,1.66019979,676.44,676.41,0.98816747]
[1752176117256,1.66019979,676.44,676.42,0.98816747]
[1752176117461,1.66019979,676.44,676.43,0.98816747]
[1752176117760,1.66019979,676.44,676.43,0.98780184]
[1752176123169,2.21315372,676.55,676.43,0.98780184]
[1752176123365,2.21315372,676.55,676.44,0.98780184]
[1752176123670,2.21315372,676.55,676.45,0.98749868]
[1752176123871,2.21315372,676.55,676.25,1.501]
[1752176124071,1.65908967,676.43,676.26,0.98749868]
[1752176124273,1.65908967,676.43,676.27,0.98749868]
[1752176124469,1.65908967,676.43,676.28,0.98749868]
[1752176124769,1.65908967,676.43,676.29,0.98749868]
[1752176124974,1.65908967,676.43,676.3,0.98749868]
[1752176125174,1.65908967,676.43,676.31,0.98749868]
[1752176125370,1.65908967,676.43,676.32,0.98749868]
[1752176125575,1.65908967,676.43,676.33,0.98749868]
[1752176125872,1.65908967,676.43,676.34,0.98749868]
[1752176126071,1.65908967,676.43,676.35,0.98749868]
[1752176126270,1.65908967,676.43,676.36,0.98749868]
[1752176126470,1.65908967,676.43,676.25,1.501]
[1752176126773,1.65908967,676.44,676.26,0.98737588]
[1752176126971,1.65908967,676.44,676.27,0.98737588]
[1752176127176,1.65908967,676.44,676.28,0.98737588]
[1752176127374,1.65908967,676.44,676.29,0.98737588]
[1752176127577,1.65908967,676.44,676.3,0.98737588]
[1752176127777,1.65908967,676.44,676.25,1.501]
[1752176127778,1.65908967,676.44,676.31,0.98737588]
[1752176127978,1.65908967,676.44,676.32,0.98737588]
[1752176128178,1.65908967,676.44,676.33,0.98737588]
[1752176128476,1.65908967,676.44,676.34,0.98737588]
[1752176128674,1.65908967,676.46,676.35,0.98737588]
[1752176128875,1.65908967,676.45,676.36,0.98737588]
[1752176129077,1.65908967,676.45,676.37,0.98737588]
[1752176129277,0.25722332,676.8,676.25,1.501]
[1752176129278,1.65908967,676.46,676.38,0.98737588]
[1752176129476,1.65908967,676.46,676.25,1.501]
[1752176129477,1.65908967,676.46,676.39,0.98737588]
[1752176129675,1.65908967,676.46,676.4,0.98737588]
[1752176129876,1.65908967,676.46,676.41,0.98737588]
[1752176130079,1.65908967,676.46,676.42,0.98737588]
[1752176130277,1.65908967,676.46,676.43,0.98737588]
[1752176130476,1.65908967,676.46,676.44,0.98737588]
[1752176130680,2.21315372,676.58,676.45,0.98737588]
[1752176130876,2.21315372,676.58,676.25,1.501]
[1752176131081,1.65879263,676.45,676.26,0.98731973]
[1752176131376,1.65879263,676.45,676.27,0.98731973]
[1752176131580,1.65879263,676.45,676.28,0.98731973]
[1752176131777,1.65879263,676.45,676.29,0.98731973]
[1752176131978,1.65879263,676.45,676.3,0.98731973]
[1752176132178,1.65879263,676.45,676.31,0.98731973]
[1752176132382,1.65879263,676.45,676.32,0.98731973]
[1752176132583,1.65879263,676.45,676.33,0.98731973]
[1752176132882,1.65879263,676.45,676.34,0.98731973]
[1752176133081,1.65879263,676.45,676.35,0.98731973]
[1752176133281,1.65879263,676.45,676.36,0.98731973]
[1752176133479,1.65879263,676.45,676.37,0.98731973]
[1752176133685,1.65879263,676.45,676.38,0.98731973]
[1752176133981,1.65879263,676.45,676.39,0.98731973]
[1752176134186,1.65879263,676.44,676.4,0.98731973]
[1752176134484,1.65879263,676.44,676.41,0.98731973]
[1752176134681,1.65879263,676.44,676.42,0.98731973]
[1752176134879,1.65879263,676.44,676.43,0.98731973]
[1752176138584,2.21315372,676.58,676.43,0.98731973]
[1752176138585,2.21315372,676.56,676.43,0.98731973]
[1752176138787,2.21315372,676.56,676.25,1.501]
[1752176138986,1.65873492,676.43,676.26,0.98787081]
[1752176139183,1.65873492,676.42,676.27,0.98787081]
[1752176139387,1.65873492,676.42,676.28,0.98787081]
[1752176139687,1.65873492,676.42,676.29,0.98787081]
[1752176139883,1.65873492,676.42,676.25,1.501]
[1752176139884,1.65873492,676.42,676.3,0.98787081]
[1752176140087,1.65873492,676.42,676.31,0.98787081]
[1752176140386,1.65873492,676.42,676.32,0.98787081]
[1752176140588,1.65873492,676.42,676.33,0.98787081]
[1752176140785,1.65873492,676.42,676.34,0.98787081]
[1752176141087,1.65873492,676.42,676.35,0.98787081]
[1752176141289,1.65873492,676.42,676.36,0.98787081]
[1752176141486,1.65873492,676.42,676.37,0.98787081]
[1752176141684,1.65873492,676.42,676.38,0.98787081]
[1752176141884,1.65873492,676.42,676.39,0.98787081]
[1752176142086,1.65873492,676.42,676.4,0.98787081]
[1752176142287,1.65873492,676.42,676.41,0.98787081]
[1752176146492,2.21315372,676.53,676.41,0.98787081]
[1752176146788,2.21315372,676.53,676.42,0.98787081]
[1752176147122,2.21315372,676.55,676.43,0.98828804]
[1752176147289,2.21315372,676.54,676.25,1.501]
[1752176147487,1.65911366,676.43,676.26,0.98832183]
[1752176147687,1.65911366,676.43,676.27,0.98832183]
[1752176147891,1.65911366,676.43,676.28,0.98832183]
[1752176148089,1.65911366,676.43,676.29,0.98832183]
[1752176148287,1.65911366,676.42,676.3,0.98832183]
[1752176148489,1.65911366,676.42,676.31,0.98832183]
[1752176148689,1.65911366,676.42,676.32,0.98832183]
[1752176148990,1.65911366,676.42,676.33,0.98832183]
[1752176149190,1.65911366,676.42,676.34,0.98832183]
[1752176149390,1.65911366,676.42,676.35,0.98832183]
[1752176149590,1.65911366,676.42,676.36,0.98832183]
[1752176149794,1.65911366,676.42,676.37,0.98832183]
[1752176149993,1.65911366,676.42,676.38,0.98832183]
[1752176150193,1.65911366,676.42,676.39,0.98832183]
[1752176150394,1.65911366,676.42,676.4,0.98832183]
[1752176150590,1.65911366,676.42,676.41,0.98832183]
[1752176150895,1.65911366,676.43,676.41,0.98832183]
[1752176151192,1.65911366,676.43,676.42,0.98832183]
[1752176152098,1.65950619,676.43,676.42,0.98832183]
[1752176152296,2.21315372,676.56,676.42,0.98832183]
[1752176152592,2.21315372,676.55,676.43,0.98832183]
[1752176152894,2.21315372,676.55,676.44,0.98832183]
[1752176153092,2.21315372,676.55,676.45,0.98832183]
[1752176153296,2.21315372,676.55,676.46,0.98832183]
[1752176153496,2.21315372,676.57,676.47,0.98832183]
[1752176153695,2.21315372,676.57,676.25,1.501]
[1752176153893,1.65977597,676.42,676.26,0.98929696]
[1752176154098,1.65977597,676.42,676.27,0.98929696]
[1752176154394,1.65977597,676.42,676.28,0.98929696]
[1752176154594,1.65977597,676.42,676.29,0.98929696]
[1752176154800,1.65977597,676.42,676.3,0.98929696]
[1752176155098,1.65977597,676.42,676.31,0.98929696]
[1752176155296,1.65977597,676.42,676.32,0.98929696]
[1752176155499,1.65977597,676.42,676.33,0.98929696]
[1752176155702,1.65977597,676.42,676.34,0.98929696]
[1752176155900,1.65977597,676.42,676.35,0.98929696]
[1752176156099,1.65977597,676.42,676.36,0.98929696]
[1752176156296,1.65977597,676.41,676.37,0.98929696]
[1752176156500,1.65977597,676.41,676.38,0.98929696]
[1752176156800,1.65977597,676.42,676.39,0.98929696]
[1752176157000,1.65977597,676.41,676.4,0.98929696]
[1752176159201,2.21315372,676.55,676.4,0.98929696]
[1752176159497,2.21315372,676.55,676.41,0.98929696]
[1752176159700,2.21315372,676.55,676.42,0.98929696]
[1752176159899,2.21315372,676.55,676.43,0.98929696]
[1752176160099,2.21315372,676.55,676.44,0.98929696]
[1752176160304,2.21315372,676.55,676.45,0.98929696]
[1752176160598,2.21315372,676.56,676.46,0.98929696]
[1752176160799,2.21315372,676.55,676.47,0.98929696]
[1752176161098,2.21315372,676.56,676.48,0.98929696]
[1752176161302,2.21315372,676.56,676.49,0.98929696]
[1752176161599,2.21315372,676.55,676.5,0.98929696]
[1752176161803,2.21315372,676.53,676.25,1.501]
[1752176162100,1.66135021,676.39,676.26,0.99036454]
[1752176162303,1.66135021,676.39,676.27,0.99036454]
[1752176162503,1.66135021,676.39,676.28,0.99036454]
[1752176162704,1.66135021,676.39,676.29,0.99036454]
[1752176163000,1.66135021,676.39,676.3,0.99036454]
[1752176163202,1.66135021,676.39,676.31,0.99036454]
[1752176163503,1.66135021,676.39,676.32,0.99036454]
[1752176163697,1.66135021,676.39,676.33,0.99036454]
[1752176163899,1.66135021,676.39,676.34,0.99036454]
[1752176164200,1.66135021,676.39,676.35,0.99036454]
[1752176164398,1.66135021,676.39,676.36,0.99036454]
[1752176164600,1.66135021,676.39,676.37,0.99036454]
[1752176164799,1.66135021,676.39,676.38,0.99036454]
[1752176165101,2.21315372,676.52,676.38,0.99036454]
[1752176165405,2.21315372,676.52,676.39,0.99036454]
[1752176165603,2.21315372,676.52,676.4,0.99036454]
[1752176165805,2.21315372,676.52,676.41,0.99036454]
[1752176166104,2.21315372,676.52,676.42,0.99036454]
[1752176166301,2.21315372,676.52,676.43,0.99036454]
[1752176166504,2.21315372,676.52,676.44,0.99036454]
[1752176166703,2.21315372,676.52,676.45,0.99036454]
[1752176166908,2.21315372,676.52,676.46,0.99036454]
[1752176167106,2.21315372,676.51,676.47,0.99036454]
[1752176167307,2.21315372,676.51,676.48,0.99036454]
[1752176167609,2.21315372,676.5,676.49,0.99036454]
[1752176170510,2.21315372,676.51,676.49,0.99036454]
[1752176170811,2.21315372,676.51,676.5,0.99036454]
[1752176171011,3.31973058,676.64,676.5,0.99036454]
[1752176171210,3.31973058,676.63,676.5,0.99036454]
[1752176171510,3.31973058,676.61,676.5,0.99036454]
[1752176171709,3.31973058,676.61,676.51,0.99214795]
[1752176172111,3.31973058,676.61,676.25,1.501]
[1752176172312,1.66219931,676.41,676.26,0.99216248]
[1752176172612,1.66219931,676.43,676.27,0.99216248]
[1752176172811,1.66219931,676.43,676.28,0.99216248]
[1752176173109,1.66219931,676.43,676.29,0.99216248]
[1752176173310,1.66219931,676.43,676.3,0.99216248]
[1752176173512,1.66219931,676.43,676.31,0.99216248]
[1752176173809,1.66219931,676.43,676.32,0.99216248]
[1752176174109,1.66219931,676.55,676.33,0.99216248]
[1752176174309,1.66219931,676.57,676.34,0.99216248]
[1752176174510,1.66219931,676.57,676.35,0.99216248]
[1752176174709,1.66219931,676.56,676.36,0.99216248]
[1752176174913,1.66219931,676.57,676.37,0.99216248]
[1752176175116,1.66219931,676.64,676.38,0.99216248]
[1752176175308,1.66219931,676.66,676.39,0.99216248]
[1752176175513,1.66219931,676.66,676.4,0.99216248]
[1752176175712,1.66219931,676.66,676.41,0.99216248]
[1752176175908,1.66219931,676.66,676.25,1.501]
[1752176175909,1.66219931,676.66,676.42,0.99216248]
[1752176176109,1.66219931,676.66,676.43,0.99216248]
[1752176176315,1.66219931,676.66,676.44,0.99216248]
[1752176176514,1.66219931,676.67,676.45,0.99216248]
[1752176176713,1.66219931,676.67,676.46,0.99216248]
[1752176176921,1.66219931,676.67,676.47,0.99216248]
[1752176177114,0.2571891,677.06,676.48,0.99216248]
[1752176177115,1.66219931,676.65,676.48,0.99216248]
[1752176177312,1.66219931,676.66,676.49,0.99216248]
[1752176177518,1.66219931,676.66,676.5,0.99216248]
[1752176177818,1.66219931,676.66,676.51,0.99216248]
[1752176178016,1.66219931,676.66,676.52,0.99216248]
[1752176178214,1.66219931,676.66,676.53,0.99216248]
[1752176178416,1.66219931,676.67,676.54,0.99216248]
[1752176178619,1.66219931,676.67,676.55,0.99216248]
[1752176178819,1.66219931,676.67,676.56,0.99216248]
[1752176179019,1.66219931,676.67,676.57,0.99216248]
[1752176179317,1.66219931,676.67,676.58,0.99216248]
[1752176179522,1.66219931,676.68,676.59,0.99216248]
[1752176179718,1.66219931,676.67,676.6,0.99216248]
[1752176179921,1.66219931,676.67,676.61,0.99216248]
[1752176180122,1.66219931,676.67,676.62,0.99216248]
[1752176180323,1.66219931,676.68,676.63,0.99216248]
[1752176180523,1.66219931,676.68,676.64,0.99216248]
[1752176180820,1.66219931,676.68,676.65,0.99216248]
[1752176181019,1.66219931,676.68,676.66,0.99216248]
[1752176181324,1.66219931,676.67,676.49,1.595]
[1752176181523,1.66219931,676.68,676.5,0.98881133]
[1752176181719,1.66219931,676.68,676.51,0.98881133]
[1752176181921,1.66219931,676.68,676.52,0.98881133]
[1752176182124,1.66219931,676.68,676.53,0.98881133]
[1752176182324,1.66219931,676.68,676.54,0.98881133]
[1752176182524,1.66219931,676.68,676.55,0.98881133]
[1752176182721,1.66219931,676.68,676.56,0.98881133]
[1752176182927,1.66219931,676.68,676.57,0.98881133]
[1752176183222,1.65675327,676.74,676.58,0.98881133]
[1752176183426,1.65675327,676.75,676.59,0.98881133]
[1752176183726,1.65675327,676.76,676.6,0.98881133]
[1752176183928,1.65675327,676.76,676.61,0.98881133]
[1752176184125,1.65675327,676.76,676.62,0.98881133]
[1752176184324,1.65675327,676.77,676.63,0.98881133]
[1752176184529,1.65675327,676.77,676.64,0.98881133]
[1752176184828,1.65675327,676.77,676.65,0.98881133]
[1752176185024,1.65675327,676.77,676.66,0.98881133]
[1752176185229,1.65675327,676.77,676.67,0.98881133]
[1752176185529,0.2571891,677.06,676.49,1.595]
[1752176185530,1.65675327,676.78,676.68,0.98881133]
[1752176185730,1.65675327,676.78,676.69,0.98881133]
[1752176185930,1.65675327,676.78,676.49,1.595]
[1752176186129,1.65675327,676.78,676.5,0.98746551]
[1752176186432,1.65675327,676.78,676.51,0.98746551]
[1752176186727,1.65675327,676.78,676.52,0.98746551]
[1752176186930,1.65675327,676.78,676.53,0.98746551]
[1752176187131,1.65675327,676.78,676.54,0.98746551]
[1752176187327,1.65675327,676.79,676.55,0.98746551]
[1752176187631,1.65675327,676.78,676.56,0.98746551]
[1752176187828,1.65675327,676.78,676.57,0.98746551]
[1752176188032,1.65675327,676.78,676.58,0.98746551]
[1752176188332,2.21626575,676.94,676.59,0.98746551]
[1752176188333,1.65675327,676.79,676.59,0.98746551]
[1752176188631,1.65675327,676.79,676.6,0.98746551]
[1752176188829,1.65675327,676.79,676.61,0.98746551]
[1752176189029,1.65675327,676.79,676.62,0.98746551]
[1752176189232,1.65675327,676.79,676.63,0.98746551]
[1752176189433,1.65675327,676.79,676.64,0.98746551]
[1752176189630,1.65675327,676.79,676.65,0.98746551]
[1752176189833,1.65675327,676.79,676.66,0.98746551]
[1752176190033,1.65675327,676.79,676.67,0.98746551]
[1752176190333,1.65675327,676.79,676.68,0.98746551]
[1752176190529,1.65675327,676.8,676.69,0.98746551]
[1752176190733,1.65675327,676.8,676.49,1.595]
[1752176190931,1.65675327,676.8,676.5,0.98673136]
[1752176191133,1.65675327,676.8,676.51,0.98673136]
[1752176191330,1.65675327,676.8,676.52,0.98673136]
[1752176191535,1.65675327,676.8,676.53,0.98673136]
[1752176191735,1.65675327,676.8,676.54,0.98673136]
[1752176192034,0.2571891,677.06,676.55,0.98673136]
[1752176192035,1.65675327,676.79,676.55,0.98673136]
[1752176192235,1.65675327,676.79,676.56,0.98673136]
[1752176192535,1.65675327,676.8,676.57,0.98673136]
[1752176192731,1.65675327,676.8,676.58,0.98673136]
[1752176192935,1.65675327,676.8,676.59,0.98673136]
[1752176193132,1.65675327,676.79,676.6,0.98673136]
[1752176193437,1.65675327,676.79,676.61,0.98673136]
[1752176193636,1.65675327,676.79,676.62,0.98673136]
[1752176193837,1.65675327,676.79,676.63,0.98673136]
[1752176194034,1.65675327,676.79,676.64,0.98673136]
[1752176194332,1.65675327,676.79,676.65,0.98673136]
[1752176194532,1.65675327,676.79,676.66,0.98673136]
[1752176194833,1.65675327,676.79,676.67,0.98673136]
[1752176195035,1.65675327,676.79,676.49,1.595]
[1752176195236,1.65675327,676.79,676.5,0.98614206]
[1752176195533,1.65675327,676.79,676.51,0.98614206]
[1752176195732,1.65675327,676.79,676.52,0.98614206]
[1752176196036,1.65675327,676.79,676.53,0.98614206]
[1752176196237,1.65675327,676.79,676.54,0.98614206]
[1752176196438,1.65675327,676.78,676.55,0.98614206]
[1752176196634,1.65675327,676.78,676.56,0.98614206]
[1752176196937,1.65675327,676.77,676.57,0.98614206]
[1752176197235,1.65675327,676.77,676.58,0.98614206]
[1752176197439,1.65675327,676.77,676.59,0.98614206]
[1752176197734,1.65675327,676.77,676.6,0.98614206]
[1752176197934,1.65675327,676.77,676.61,0.98614206]
[1752176198134,1.65675327,676.77,676.62,0.98614206]
[1752176198338,1.65675327,676.78,676.63,0.98614206]
[1752176198535,1.65675327,676.78,676.64,0.98614206]
[1752176198837,1.65675327,676.79,676.65,0.98614206]
[1752176199139,1.65675327,676.78,676.66,0.98614206]
[1752176199339,1.65675327,676.78,676.49,1.595]
[1752176199539,1.65675327,676.78,676.5,0.98589815]
[1752176199736,1.65675327,676.78,676.51,0.98589815]
[1752176199936,1.65675327,676.78,676.52,0.98589815]
[1752176200140,1.65675327,676.78,676.53,0.98589815]
[1752176200341,1.65675327,676.78,676.54,0.98589815]
[1752176200539,1.65675327,676.74,676.55,0.98589815]
[1752176200742,1.65675327,676.73,676.56,0.98589815]
[1752176200940,1.65675327,676.73,676.57,0.98589815]
[1752176201141,1.65675327,676.73,676.58,0.98589815]
[1752176201340,1.65675327,676.73,676.59,0.98589815]
[1752176201541,1.65675327,676.73,676.6,0.98589815]
[1752176201744,1.65675327,676.73,676.14,0.25714539]
[1752176202042,1.65675327,676.74,676.15,0.98644491]
[1752176202244,1.65675327,676.74,676.14,0.25714539]
[1752176202245,1.65675327,676.74,676.16,0.98644491]
[1752176202444,1.65675327,676.73,676.17,0.98644491]
[1752176202642,1.65675327,676.73,676.18,0.98644491]
[1752176202840,1.65675327,676.73,676.19,0.98644491]
[1752176203144,1.65675327,676.73,676.2,0.98644491]
[1752176203344,1.65675327,676.73,676.21,0.98644491]
[1752176203542,1.65675327,676.73,676.22,0.98644491]
[1752176203741,1.65675327,676.73,676.23,0.98644491]
[1752176203941,1.65675327,676.73,676.24,0.98644491]
[1752176204245,1.65675327,676.73,676.25,0.98644491]
[1752176204441,1.65675327,676.73,676.26,0.98644491]
[1752176204645,1.65675327,676.73,676.27,0.98644491]
[1752176204845,1.65675327,676.73,676.28,0.98644491]
[1752176205043,1.65675327,676.73,676.29,0.98644491]
[1752176205247,1.65675327,676.73,676.3,0.98644491]
[1752176205543,1.65675327,676.73,676.31,0.98644491]
[1752176205747,1.65675327,676.73,676.32,0.98644491]
[1752176206048,1.65675327,676.73,676.33,0.98644491]
[1752176206346,1.65675327,676.73,676.34,0.98644491]
[1752176206543,1.65675327,676.73,676.35,0.98644491]
[1752176206747,1.65675327,676.73,676.36,0.98644491]
[1752176206948,1.65675327,676.73,676.37,0.98644491]
[1752176207143,1.65675327,676.73,676.38,0.98644491]
[1752176207343,1.65675327,676.73,676.39,0.98644491]
[1752176207547,1.65675327,676.73,676.4,0.98644491]
[1752176207743,1.65675327,676.73,676.41,0.98644491]
[1752176207946,1.65675327,676.73,676.42,0.98644491]
[1752176208244,1.65675327,676.72,676.43,0.98644491]
[1752176208544,1.65675327,676.72,676.44,0.98644491]
[1752176208748,1.65675327,676.7,676.45,0.98644491]
[1752176208946,1.65675327,676.71,676.46,0.98644491]
[1752176209243,1.65675327,676.71,676.47,0.98644491]
[1752176209448,1.65675327,676.71,676.48,0.98644491]
[1752176209645,1.65675327,676.71,676.49,0.98644491]
[1752176209849,1.65675327,676.71,676.5,0.98644491]
[1752176210049,1.65675327,676.71,676.51,0.98644491]
[1752176210248,1.65675327,676.72,676.52,0.98644491]
[1752176210445,1.65675327,676.72,676.53,0.98644491]
[1752176210649,1.65675327,676.72,676.54,0.98644491]
[1752176210949,1.65675327,676.72,676.55,0.98644491]
[1752176211147,1.65675327,676.72,676.56,0.98644491]
[1752176211349,1.65675327,676.72,676.57,0.98644491]
[1752176211550,1.65675327,676.74,676.58,0.98644491]
[1752176211748,1.65675327,676.74,676.59,0.98644491]
[1752176211951,1.65675327,676.74,676.16,1.431]
[1752176212148,1.65675327,676.74,676.17,0.98696375]
[1752176212350,1.65675327,676.74,676.18,0.98696375]
[1752176212551,1.65675327,676.72,676.19,0.98696375]
[1752176212846,1.65675327,676.72,676.2,0.98696375]
[1752176213051,1.65675327,676.72,676.21,0.98696375]
[1752176213252,1.65675327,676.71,676.22,0.98696375]
[1752176213450,1.65675327,676.69,676.23,0.98696375]
[1752176213651,1.65675327,676.68,676.24,0.98696375]
[1752176213851,1.65675327,676.68,676.25,0.98696375]
[1752176214051,1.65675327,676.68,676.26,0.98696375]
[1752176214351,1.65675327,676.67,676.27,0.98696375]
[1752176214553,1.65675327,676.67,676.16,1.431]
[1752176214554,1.65675327,676.67,676.28,0.98696375]
[1752176214754,1.65675327,676.67,676.29,0.98696375]
[1752176214950,1.65675327,676.67,676.3,0.98696375]
[1752176215154,1.65675327,676.67,676.31,0.98696375]
[1752176215355,1.65675327,676.67,676.32,0.98696375]
[1752176215652,1.65675327,676.67,676.33,0.98696375]
[1752176215955,1.65675327,676.67,676.34,0.98696375]
[1752176216157,1.65675327,676.67,676.35,0.98696375]
[1752176216352,1.65675327,676.65,676.36,0.98696375]
[1752176216556,1.65675327,676.65,676.37,0.98696375]
[1752176216855,1.65675327,676.65,676.38,0.98696375]
[1752176217051,1.65675327,676.65,676.39,0.98696375]
[1752176217355,1.65675327,676.65,676.4,0.98696375]
[1752176217653,1.65675327,676.64,676.41,0.98696375]
[1752176217852,1.65675327,676.64,676.42,0.98696375]
[1752176218055,1.65675327,676.62,676.43,0.98696375]
[1752176218251,1.65675327,676.62,676.44,0.98696375]
[1752176218551,1.65675327,676.62,676.45,0.98696375]
[1752176218752,1.65675327,676.62,676.46,0.98696375]
[1752176218955,1.65675327,676.62,676.47,0.98696375]
[1752176219157,1.65675327,676.62,676.48,0.98696375]
[1752176219352,1.65675327,676.62,676.16,1.431]
[1752176219353,1.65675327,676.62,676.49,0.98696375]
[1752176219556,1.65675327,676.62,676.16,1.431]
[1752176219756,1.65675327,676.62,676.17,0.98784394]
[1752176219955,1.65675327,676.62,676.18,0.98784394]
[1752176220157,1.65675327,676.61,676.19,0.98784394]
[1752176220357,1.65675327,676.61,676.2,0.98784394]
[1752176220657,1.65675327,676.61,676.21,0.98784394]
[1752176220857,1.65675327,676.61,676.16,1.431]
[1752176220858,1.65675327,676.61,676.22,0.98784394]
[1752176221157,1.65675327,676.61,676.23,0.98784394]
[1752176221354,1.65675327,676.61,676.24,0.98784394]
[1752176221558,1.65675327,676.61,676.25,0.98784394]
[1752176221754,1.65675327,676.61,676.26,0.98784394]
[1752176221964,1.65675327,676.61,676.27,0.98784394]
[1752176222255,1.65675327,676.6,676.28,0.98784394]
[1752176222459,1.65675327,676.6,676.29,0.98784394]
[1752176222660,1.65675327,676.6,676.3,0.98784394]
[1752176222959,1.65675327,676.6,676.31,0.98784394]
[1752176223154,1.65675327,676.6,676.32,0.98784394]
[1752176223356,1.65675327,676.6,676.33,0.98784394]
[1752176223559,1.65675327,676.6,676.34,0.98784394]
[1752176223755,1.65675327,676.6,676.35,0.98784394]
[1752176223959,1.65675327,676.6,676.36,0.98784394]
[1752176224254,1.65675327,676.6,676.16,1.431]
[1752176224255,1.65675327,676.6,676.37,0.98784394]
[1752176224560,1.65675327,676.6,676.38,0.98784394]
[1752176224758,1.65675327,676.6,676.39,0.98784394]
[1752176225060,1.65675327,676.6,676.4,0.98784394]
[1752176225356,3.31973058,676.87,676.41,0.98784394]
[1752176225357,1.65675327,676.59,676.41,0.98784394]
[1752176225555,1.65675327,676.59,676.42,0.98784394]
[1752176225760,1.65675327,676.59,676.43,0.98784394]
[1752176225956,1.65675327,676.59,676.44,0.98784394]
[1752176226257,1.65675327,676.59,676.45,0.98784394]
[1752176226557,1.65675327,676.59,676.46,0.98784394]
[1752176226762,1.65675327,676.59,676.47,0.98784394]
[1752176227060,1.65675327,676.59,676.16,1.431]
[1752176227258,1.65675327,676.59,676.17,0.98739108]
[1752176227460,1.65675327,676.58,676.18,0.98739108]
[1752176227660,1.65675327,676.58,676.19,0.98739108]